[Event "LEM Niedersachsen-A-Open 2025"]
[Site "Verden"]
[Date "2025.01.05"]
[Round "7.1"]
[White "Weigand, Anton"]
[Black "Laubsch, Bernd"]
[Result "1/2-1/2"]
[ECO "B22"]
[WhiteElo "2092"]
[BlackElo "2215"]
[Annotator "TA"]
[PlyCount "49"]
[EventDate "2024.12.27"]
[EventType "swiss"]
[EventCountry "GER"]
[SourceTitle "playchess.com"]
[Source "ChessBase"]
[SourceQuality "1"]
[TimeControl "40/5400+30:1800+30"]

{[%evp 9,49,13,6,0,8,20,9,4,25,6,23,11,10,10,13,27,22,35,31,0,30,8,21,5,3,4,8,0,2,1,19,6,7,11,11,8,7,0,8,12,19,17]} 1. e4 {[%emt 0:00:03]} c5 {[%emt 0:00:51]} 2. c3 {[%emt 0:00:05]} Nf6 {[%emt 0:00:34]} 3. e5 {[%emt 0:00:06]} Nd5 {[%emt 0:00:07]} 4. Bc4 {[%emt 0:00:06]} e6 {[%emt 0:00:34]} 5. Nf3 {[%emt 0:00:12]} d6 {[%emt 0:02:21]} 6. d4 {[%emt 0:00:06]} Be7 {[%emt 0:00:25]} 7. O-O {[%emt 0:00:12]} O-O {[%emt 0:00:34]} 8. Qe2 {[%emt 0:00:07]} b6 {[%emt 0:09:49]} 9. Rd1 {[%emt 0:03:54]} (9. Bd3 {feels hotter.} Nc6 10. Qe4 g6 11. Bh6) 9... cxd4 {[%emt 0:03:25]} 10. cxd4 {[%emt 0:01:03]} Bb7 {[%emt 0:00:38]} 11. Bxd5 {[%emt 0:00:08]} Bxd5 {[%emt 0:00:40]} 12. Nc3 {[%emt 0:00:06]} Bxf3 {[%emt 0:03:41]} 13. Qxf3 {[%emt 0:00:09]} d5 {[%emt 0:00:08]} 14. Qg3 {[%emt 0:01:16] Bh6 would now be deadly.} Kh8 {[%emt 0:04:16]} 15. Ne2 {[%emt 0:03:16]} Nc6 {[%emt 0:08:54] The position is equal.} 16. Bd2 {[%emt 0:05:16]} Rc8 {[%emt 0:05:41]} 17. Rac1 {[%emt 0:02:01]} Qd7 {[%emt 0:02:36]} 18. h4 {[%emt 0:05:18]} Rc7 {[%emt 0:04:43]} 19. h5 {[%emt 0:04:26]} h6 {[%emt 0:03:07]} 20. Qf3 {[%emt 0:09:35]} Kg8 {[%emt 0:03:17]} 21. Qg4 {[%emt 0:08:02]} Kh7 {[%emt 0:02:20]} 22. Rc3 {[%emt 0:10:32]} Rfc8 {[%emt 0:05:31]} 23. Rdc1 {[%emt 0:09:25]} Bf8 {[%emt 0:03:43]} 24. Qf3 {[%emt 0:03:24]} Nd8 {[%emt 0:08:07]} 25. Qd3+ {[%emt 0:02:56] A rather calm draw.   Weighted Error Value: White=0.07 (flawless) /Black=0.06 (flawless) .  Inaccurate:     	White=1     	Black=1      OK:         	White=6     	Black=8} 1/2-1/2

[Event "LEM Niedersachsen-A-Open 2025"]
[Site "Verden"]
[Date "2025.01.05"]
[Round "7.2"]
[White "Burkhardt, Holger"]
[Black "Stotyn, Fabian"]
[Result "0-1"]
[ECO "B29"]
[WhiteElo "2092"]
[BlackElo "2123"]
[Annotator "TA"]
[PlyCount "98"]
[EventDate "2024.12.27"]
[EventType "swiss"]
[EventCountry "GER"]
[SourceTitle "playchess.com"]
[Source "ChessBase"]
[SourceQuality "1"]
[TimeControl "40/5400+30:1800+30"]

{[%evp 9,98,5,2,0,74,107,179,150,213,107,94,92,79,-6,-11,-21,-5,-8,68,59,66,33,59,54,55,22,83,54,45,51,63,74,67,42,88,29,41,36,26,21,134,152,138,142,123,62,252,100,90,78,72,99,64,57,60,43,66,18,106,1,2,0,75,71,143,0,0,-41,-72,-48,-12,-55,-8,-10,-10,-12,0,0,-7,-36,-35,-35,-30,-56,-19,-54,-6,-112,-104,-564,-570]} 1. e4 {[%emt 0:00:02][%cal Be2e4,Be4e5,Be5e6][%mdl 32]} c5 {[%emt 0:00:03]} 2. Nf3 {[%emt 0:00:07]} Nf6 {[%emt 0:00:04]} 3. Nc3 {[%emt 0:00:09]} d5 {[%emt 0:00:04]} 4. Bb5+ {[%emt 0:00:09]} Bd7 {[%emt 0:00:48]} 5. e5 {[%emt 0:01:10]} Bxb5 {[%emt 0:04:16]} 6. Nxb5 {[%emt 0:00:17]} Ng8 {[%emt 0:04:41]} (6... Qd7 $11) 7. e6 $1 $16 {[%emt 0:10:42]} f6 {[%emt 0:05:06]} (7... fxe6 $16 {might work better.} 8. Ng5 Qb6) 8. d4 {[%emt 0:08:39]} Qb6 {[%emt 0:05:50]} (8... Nc6 $16) 9. Qe2 {[%emt 0:04:43]} (9. c4 $1 $18 Qxe6+ 10. Be3) 9... a6 {[%emt 0:00:19]} 10. Nc3 {[%emt 0:00:47]} cxd4 {[%emt 0:00:27]} 11. Nb1 {[%emt 0:00:20]} (11. Nxd4 $16 Qxd4 12. Be3) 11... Nc6 {[%emt 0:00:48]} 12. O-O {[%emt 0:00:38]} g6 {[%emt 0:04:00]} 13. c3 {[%emt 0:03:08]} dxc3 {[%emt 0:00:31]} (13... Bg7 $11) 14. Nxc3 $14 {[%emt 0:00:17]} d4 {[%emt 0:00:37]} 15. Nd5 {[%emt 0:02:59][%mdl 1024] White has compensation.} Qa5 $1 {[%emt 0:01:46]} 16. Nf4 $1 {[%emt 0:11:12]} Rd8 {[%emt 0:02:24]} 17. Bd2 {[%emt 0:05:10]} Qb5 {[%emt 0:05:34]} (17... Qf5 $11) 18. Nd3 $16 {[%emt 0:01:21]} Bh6 {[%emt 0:02:03]} 19. b4 {[%emt 0:08:26]} Bxd2 {[%emt 0:01:28]} 20. Qxd2 {[%emt 0:00:28]} Qd5 {[%emt 0:03:01]} 21. Rfe1 {[%emt 0:05:22]} Rd6 {[%emt 0:03:13]} (21... Kf8 $14) 22. Rad1 {[%emt 0:14:34]} (22. Nc5 $16) 22... Rxe6 $11 {[%emt 0:02:34]} 23. Rxe6 {[%emt 0:00:01]} Qxe6 {[%emt 0:00:06]} 24. Nc5 {[%emt 0:00:18][%csl LRb7,LRd4,LRe6]} Qc8 {[%emt 0:07:01]} (24... Qc4 $11) 25. Nxd4 $16 {[%emt 0:00:34]} Nxd4 {[%emt 0:01:10]} 26. Qxd4 {[%emt 0:00:02]} Nh6 {[%emt 0:00:55][%cal Bg8h6,Bh6f7,Bf7d6][%mdl 32]} 27. Qd5 {[%emt 0:01:31]} (27. Nxb7 $1 $16 {aiming for Nc5.} O-O 28. Nc5) 27... b6 $2 {[%emt 0:02:48]} (27... Nf7 $14) 28. Ne6 $2 {[%emt 0:03:55]} (28. Nd7 $18 {is the precise move to win.}) 28... Nf7 {[%emt 0:00:55]} 29. Ng7+ {[%emt 0:00:45]} Kf8 {[%emt 0:00:17]} 30. Ne6+ {[%emt 0:00:08]} Ke8 {[%emt 0:00:36]} 31. b5 {[%emt 0:01:09]} a5 {[%emt 0:01:57]} 32. h4 {[%emt 0:07:19]} Nd6 {[%emt 0:01:32]} 33. h5 {[%emt 0:00:58]} (33. a4 $14) 33... Qb7 {[%emt 0:02:28]} (33... Rg8 $11 {keeps the balance.}) 34. Ng7+ {[%emt 0:05:55]} (34. Qd3 $1 $16) 34... Kf8 $11 {[%emt 0:00:09]} 35. Ne6+ {[%emt 0:01:49]} (35. Qxb7 $11 Nxb7 36. Rd7 (36. Ne6+ Ke8 $17)) 35... Ke8 $16 {[%emt 0:00:04] [#]} 36. Qd3 $1 {[%emt 0:02:19]} gxh5 {[%emt 0:05:17]} ({Black should try} 36... Qc8 37. Re1 (37. Qd5 Rg8 $14) 37... Rg8) 37. Ng7+ {[%emt 0:00:50]} ({White should try} 37. Rc1 $16) 37... Kf7 $11 {[%emt 0:00:13]} 38. Nxh5 {[%emt 0:00:15][%cal Bg7h5,Bh5f4,Bf4d5][%mdl 32]} Qe4 {[%emt 0:00:41]} 39. Qb3+ {[%emt 0:00:28]} Qc4 {[%emt 0:00:37][%cal Oc4b3] ...Qxb3! is the strong threat.} 40. Qh3 {[%emt 0:01:01][%cal Od1d6]} (40. Qf3 $5 Qe4 (40... Nxb5 41. Nf4 $11) (40... Qxb5 $2 41. Rxd6 Rc8 42. Rd1 $18) 41. Qb3+ Qc4 42. Qf3 $11) 40... Qxb5 {[%emt 0:03:00]} ({Much weaker is} 40... Qxa2 $6 41. Nf4 $11) (40... Qe2 $15 41. Qb3+ Qe6) 41. Nf4 {[%emt 0:03:42]} Qe5 {[%emt 0:05:44]} 42. Qb3+ {[%emt 0:02:50]} Ke8 {[%emt 0:00:13]} 43. Qxb6 {[%emt 0:02:58]} Rg8 $36 {[%emt 0:01:51][%mdl 2048] Black has good play.} 44. Qb8+ {[%emt 0:03:17]} Kf7 {[%emt 0:00:06]} 45. Qb3+ {[%emt 0:00:06]} Kg7 {[%emt 0:00:24]} 46. Nd5 {[%emt 0:10:55][%cal Od5e7]} Kh8 {[%emt 0:02:37]} 47. Ne3 {[%emt 0:00:19]} Qf4 {[%emt 0:04:19]} (47... Rg5 $15) 48. Qe6 {[%emt 0:05:09]} (48. g3 $11 Qe4 49. Qd5) 48... Ne4 $17 {[%emt 0:07:39]} 49. Rf1 $2 {[%emt 0:00:13][%mdl 8192] [#]} (49. Qf5 $17 Nxf2 50. Qxf4 Nh3+ (50... Nxd1 $2 {is the wrong capture.} 51. Nxd1 Rc8 52. Ne3 $18) 51. Kf1 Nxf4 52. Rd7) 49... Ng5 $1 {[%emt 0:01:50]} 0-1

[Event "LEM Niedersachsen-A-Open 2025"]
[Site "Verden"]
[Date "2025.01.05"]
[Round "7.3"]
[White "Becker, Stefan"]
[Black "Hilker, Bjoern"]
[Result "1-0"]
[ECO "D02"]
[WhiteElo "2036"]
[BlackElo "1993"]
[Annotator "RC"]
[PlyCount "85"]
[EventDate "2024.12.27"]
[EventType "swiss"]
[EventCountry "GER"]
[SourceTitle "playchess.com"]
[Source "ChessBase"]
[SourceQuality "1"]
[TimeControl "40/5400+30:1800+30"]

1. Nf3 {[%emt 0:00:05]} d5 {[%emt 0:00:09]} 2. g3 {[%emt 0:00:10]} c5 {[%emt 0:00:11]} 3. Bg2 {[%emt 0:00:15]} Nc6 {[%emt 0:00:14]} 4. d4 {[%emt 0:00:36]} cxd4 {[%emt 0:00:59]} 5. Nxd4 {[%emt 0:00:10]} e5 {[%emt 0:00:17]} 6. Nxc6 {[%emt 0:03:54]} bxc6 {[%emt 0:01:02]} 7. O-O {[%emt 0:01:06]} Rb8 {[%emt 0:07:47]} 8. c4 {[%emt 0:01:25]} Nf6 {[%emt 0:16:58]} 9. Nc3 {[%emt 0:05:58]} d4 {[%emt 0:07:48]} 10. Bxc6+ {[%emt 0:05:03]} Bd7 {[%emt 0:02:25]} 11. Bxd7+ {[%emt 0:00:13]} Qxd7 {[%emt 0:00:40]} 12. Na4 {[%emt 0:01:13]} Qh3 {[%emt 0:04:18]} 13. f3 {[%emt 0:07:20]} Bd6 {[%emt 0:18:39]} 14. Rf2 {[%emt 0:08:25]} h6 {[%emt 0:06:28]} 15. e3 {[%emt 0:14:16]} O-O {[%emt 0:03:10]} 16. exd4 {[%emt 0:04:39]} exd4 {[%emt 0:00:34]} 17. b3 {[%emt 0:08:20]} Rfe8 {[%emt 0:03:47]} 18. Bb2 {[%emt 0:01:58]} Rbd8 {[%emt 0:04:44]} 19. Qf1 {[%emt 0:02:28]} Qf5 {[%emt 0:01:51]} 20. Rd1 {[%emt 0:03:06]} d3 {[%emt 0:05:31]} 21. Rfd2 {[%emt 0:07:10]} Bc5+ {[%emt 0:10:30]} 22. Nxc5 {[%emt 0:08:04]} Qxc5+ {[%emt 0:00:01]} 23. Kg2 {[%emt 0:01:20]} Re6 {[%emt 0:03:00]} 24. Bxf6 {[%emt 0:01:53]} gxf6 {[%emt 0:00:13]} 25. Rxd3 {[%emt 0:00:21]} Rde8 {[%emt 0:00:43]} 26. Rd8 {[%emt 0:00:14]} Qa5 {[%emt 0:00:36]} 27. Rxe8+ {[%emt 0:00:39]} Rxe8 {[%emt 0:00:00]} 28. Qf2 {[%emt 0:02:14]} Re5 {[%emt 0:00:17]} 29. Rd2 {[%emt 0:01:39]} Qc3 {[%emt 0:00:47]} 30. Re2 {[%emt 0:01:50]} Ra5 {[%emt 0:01:03]} 31. Qf1 {[%emt 0:02:05]} Rf5 {[%emt 0:00:27]} 32. Re4 {[%emt 0:01:05]} Qc2+ {[%emt 0:00:45]} 33. Qe2 {[%emt 0:00:37]} Qc3 {[%emt 0:00:29]} 34. Rg4+ {[%emt 0:01:28]} Kf8 {[%emt 0:00:30]} 35. Re4 {[%emt 0:02:27]} Ra5 {[%emt 0:00:23]} 36. Qf2 {[%emt 0:00:45]} Qa1 {[%emt 0:00:18]} 37. Re2 {[%emt 0:00:16]} Qc3 {[%emt 0:00:39]} 38. Rc2 {[%emt 0:00:17]} Qb4 {[%emt 0:00:21]} 39. Qd2 {[%emt 0:00:33]} Qb6 {[%emt 0:00:53]} 40. Qxh6+ {[%emt 0:00:46]} Kg8 {[%emt 0:00:14]} 41. Re2 {[%emt 0:30:28]} Qc6 {[%emt 0:05:06]} 42. h4 {[%emt 0:00:00]} Rf5 {[%emt 0:06:15]} 43. Re4 {[%emt 0:00:00]} 1-0

[Event "LEM Niedersachsen-A-Open 2025"]
[Site "Verden"]
[Date "2025.01.05"]
[Round "7.4"]
[White "Scheffner, Jarno"]
[Black "Kieselbach, Marvin"]
[Result "1/2-1/2"]
[ECO "B67"]
[WhiteElo "1925"]
[BlackElo "2008"]
[Annotator "RC"]
[PlyCount "80"]
[EventDate "2024.12.27"]
[EventType "swiss"]
[EventCountry "GER"]
[SourceTitle "playchess.com"]
[Source "ChessBase"]
[SourceQuality "1"]
[TimeControl "40/5400+30:1800+30"]

1. e4 {[%emt 0:00:03]} c5 {[%emt 0:00:05]} 2. Nf3 {[%emt 0:00:11]} Nc6 {[%emt 0:00:06]} 3. d4 {[%emt 0:00:09]} cxd4 {[%emt 0:00:02]} 4. Nxd4 {[%emt 0:00:09]} Nf6 {[%emt 0:00:06]} 5. Nc3 {[%emt 0:00:10]} d6 {[%emt 0:01:06]} 6. Bg5 {[%emt 0:00:08]} e6 {[%emt 0:00:07]} 7. Qd2 {[%emt 0:00:22]} a6 {[%emt 0:00:09]} 8. O-O-O {[%emt 0:01:28]} Bd7 {[%emt 0:00:09]} 9. h4 {[%emt 0:00:27]} Be7 {[%emt 0:01:05]} 10. f3 {[%emt 0:00:23]} Nxd4 {[%emt 0:00:26]} 11. Qxd4 {[%emt 0:00:07]} Qc7 {[%emt 0:02:55]} 12. g4 {[%emt 0:07:57]} O-O {[%emt 0:04:20]} 13. h5 {[%emt 0:07:15]} h6 {[%emt 0:01:45]} 14. Bh4 {[%emt 0:01:59]} b5 {[%emt 0:01:46]} 15. a3 {[%emt 0:06:10]} Rfc8 {[%emt 0:12:18]} 16. g5 {[%emt 0:01:28]} hxg5 {[%emt 0:07:31]} 17. Bxg5 {[%emt 0:00:07]} Qc5 {[%emt 0:16:54]} 18. Qxc5 {[%emt 0:11:29]} Rxc5 {[%emt 0:00:10]} 19. f4 {[%emt 0:00:07]} Bc6 {[%emt 0:06:38]} 20. Rd3 {[%emt 0:01:42]} Rc8 {[%emt 0:13:18]} 21. Rh2 {[%emt 0:04:48]} a5 {[%emt 0:05:35]} 22. h6 {[%emt 0:13:11]} g6 {[%emt 0:05:56]} 23. h7+ {[%emt 0:11:09]} Kg7 {[%emt 0:00:24]} 24. h8=Q+ {[%emt 0:00:48]} Rxh8 {[%emt 0:00:11]} 25. Rxh8 {[%emt 0:00:05]} Kxh8 {[%emt 0:00:15]} 26. b4 {[%emt 0:00:03]} axb4 {[%emt 0:00:45]} 27. axb4 {[%emt 0:00:08]} Rxg5 {[%emt 0:01:09]} 28. fxg5 {[%emt 0:00:07]} Nxe4 {[%emt 0:00:46]} 29. Nxe4 {[%emt 0:04:25]} Bxe4 {[%emt 0:00:01]} 30. Rg3 {[%emt 0:00:12]} Bc6 {[%emt 0:06:42]} 31. Kb2 {[%emt 0:01:06]} Kg7 {[%emt 0:00:33]} 32. Rc3 {[%emt 0:03:20]} Bd5 {[%emt 0:02:33]} 33. Rc7 {[%emt 0:11:43]} Bxg5 {[%emt 0:00:02]} 34. Bxb5 {[%emt 0:00:11]} e5 {[%emt 0:03:40]} 35. Rd7 {[%emt 0:00:26]} Be6 {[%emt 0:00:18]} 36. Rxd6 {[%emt 0:04:03]} Be7 {[%emt 0:00:09]} 37. Rxe6 {[%emt 0:01:37]} fxe6 {[%emt 0:00:08]} 38. Kc3 {[%emt 0:00:08]} Bd6 {[%emt 0:06:18]} 39. Bc6 {[%emt 0:00:13]} Kf6 {[%emt 0:00:51]} 40. b5 {[%emt 0:01:41]} Bc5 {[%emt 0:01:05]} 1/2-1/2

[Event "LEM Niedersachsen-A-Open 2025"]
[Site "Verden"]
[Date "2025.01.05"]
[Round "7.5"]
[White "Reimer, Philip"]
[Black "Bundan, Edward"]
[Result "1/2-1/2"]
[ECO "B33"]
[WhiteElo "2131"]
[BlackElo "1822"]
[Annotator "TA"]
[PlyCount "47"]
[EventDate "2024.12.27"]
[EventType "swiss"]
[EventCountry "GER"]
[SourceTitle "playchess.com"]
[Source "ChessBase"]
[SourceQuality "1"]
[TimeControl "40/5400+30:1800+30"]

{[%evp 16,47,0,0,51,-31,-38,-45,-66,-57,-56,-57,-26,-35,-31,-55,-21,-22,89,85,85,89,87,75,89,76,85,70,75,68,66,35,44,19]} 1. e4 {[%emt 0:00:06]} c5 {[%emt 0:00:06]} 2. Nf3 {[%emt 0:00:12][%cal Bg1f3,Bf3d4,Bd4b5,Bb5a3][%mdl 32]} Nc6 {[%emt 0:00:10]} 3. d4 {[%emt 0:00:20]} cxd4 {[%emt 0:00:07]} 4. Nxd4 {[%emt 0:00:03]} Nf6 {[%emt 0:00:07]} 5. Nc3 {[%emt 0:00:05]} e5 {[%emt 0:00:05]} 6. Ndb5 {[%emt 0:01:19]} d6 {[%emt 0:00:07]} 7. a4 {[%emt 0:00:20]} a6 {[%emt 0:01:24]} 8. Na3 {[%emt 0:00:06]} Be6 {[%emt 0:08:12]} 9. Bc4 {[%emt 0:05:38]} Nxe4 {[%emt 0:20:44]} 10. Nxe4 {[%emt 0:18:32]} ({White should play} 10. Bxe6 $14 Nxc3 11. Bxf7+ Kxf7 12. bxc3) 10... d5 $15 {[%emt 0:09:30]} 11. Bg5 {[%emt 0:26:39]} Qd7 {[%emt 0:10:33][%cal Of8a3]} 12. Bd3 {[%emt 0:17:57]} dxe4 {[%emt 0:02:40]} 13. Bxe4 {[%emt 0:00:03]} Bc5 {[%emt 0:03:16]} 14. Qxd7+ {[%emt 0:00:51]} Kxd7 {[%emt 0:00:56]} 15. c3 {[%emt 0:01:45]} Bb3 {[%emt 0:03:34]} 16. Bc2 {[%emt 0:02:09][%cal Be4c2,Bc2b3,Bb3d5][%mdl 32]} Bxa3 {[%emt 0:05:44]} (16... Na5 $11 {remains equal.}) 17. O-O-O+ $16 {[%emt 0:00:53]} ({Much weaker is} 17. Bxb3 $6 Bxb2 18. Rd1+ Kc7 $11) 17... Bd6 {[%emt 0:03:14]} 18. Bxb3 {[%emt 0:00:11][%cal Od1d2]} f6 {[%emt 0:01:18]} 19. Be3 {[%emt 0:00:49] Bc5 is the strong threat.} Kc7 {[%emt 0:00:39]} 20. Bd5 {[%emt 0:08:43]} a5 {[%emt 0:01:54]} 21. g3 {[%emt 0:07:36]} Rad8 {[%emt 0:02:12]} 22. Kc2 {[%emt 0:01:36] White is more active. Black is weak on the light squares} b6 {[%emt 0:03:06]} 23. Be4 {[%emt 0:02:26] A strong pair of Bishops.} Ne7 {[%emt 0:01:38] Inhibits Rd5.} 24. Rd2 {[%emt 0:01:08]} 1/2-1/2

[Event "LEM Niedersachsen-A-Open 2025"]
[Site "Verden"]
[Date "2025.01.05"]
[Round "7.6"]
[White "Lebiedz, Oliver"]
[Black "Hoellman, Ludger"]
[Result "1-0"]
[ECO "B12"]
[WhiteElo "1939"]
[BlackElo "2026"]
[Annotator "RC"]
[PlyCount "55"]
[EventDate "2024.12.27"]
[EventType "swiss"]
[EventCountry "GER"]
[SourceTitle "playchess.com"]
[Source "ChessBase"]
[SourceQuality "1"]
[TimeControl "40/5400+30:1800+30"]

1. e4 {[%emt 0:00:02]} c6 {[%emt 0:04:38]} 2. d4 {[%emt 0:00:05]} d5 {[%emt 0:00:04]} 3. e5 {[%emt 0:00:04]} c5 {[%emt 0:00:09]} 4. Nf3 {[%emt 0:00:05]} cxd4 {[%emt 0:00:49]} 5. Qxd4 {[%emt 0:00:08]} Nc6 {[%emt 0:00:25]} 6. Qf4 {[%emt 0:00:04]} e6 {[%emt 0:00:17]} 7. Bd3 {[%emt 0:01:28]} Nb4 {[%emt 0:01:20]} 8. Nc3 {[%emt 0:00:05]} Nxd3+ {[%emt 0:00:16]} 9. cxd3 {[%emt 0:00:06]} Ne7 {[%emt 0:00:27]} 10. h4 {[%emt 0:10:03]} h5 {[%emt 0:00:06]} 11. Ne2 {[%emt 0:17:12]} Nf5 {[%emt 0:07:56]} 12. Bd2 {[%emt 0:14:11]} Bd7 {[%emt 0:05:01]} 13. Ned4 {[%emt 0:06:22]} Nxd4 {[%emt 0:14:11]} 14. Nxd4 {[%emt 0:00:10]} Qb6 {[%emt 0:11:08]} 15. O-O {[%emt 0:01:18]} Be7 {[%emt 0:03:26]} 16. b4 {[%emt 0:11:44]} O-O {[%emt 0:15:15]} 17. Be3 {[%emt 0:02:03]} Qa6 {[%emt 0:07:55]} 18. Rfd1 {[%emt 0:13:39]} f6 {[%emt 0:08:20]} 19. Qg3 {[%emt 0:05:21]} Ba4 {[%emt 0:04:13]} 20. b5 {[%emt 0:08:57]} Bxb5 {[%emt 0:00:27]} 21. a4 {[%emt 0:04:44]} Bd7 {[%emt 0:02:05]} 22. Rab1 {[%emt 0:00:37]} Qxa4 {[%emt 0:05:07]} 23. Rdc1 {[%emt 0:00:47]} Rac8 {[%emt 0:00:44]} 24. Rxb7 {[%emt 0:01:47]} Rxc1+ {[%emt 0:01:37]} 25. Bxc1 {[%emt 0:01:58]} fxe5 {[%emt 0:02:01]} 26. Nxe6 {[%emt 0:00:00]} Rf7 {[%emt 0:02:55]} 27. Rb8+ {[%emt 0:00:00]} Bf8 {[%emt 0:01:46]} 28. Rxf8+ {[%emt 0:00:00]} 1-0

[Event "LEM Niedersachsen-A-Open 2025"]
[Site "Verden"]
[Date "2025.01.05"]
[Round "7.7"]
[White "Thomas, Jeremy"]
[Black "Boerma, Daniel"]
[Result "0-1"]
[ECO "C02"]
[WhiteElo "1935"]
[BlackElo "1958"]
[Annotator "RC"]
[PlyCount "44"]
[EventDate "2024.12.27"]
[EventType "swiss"]
[EventCountry "GER"]
[SourceTitle "playchess.com"]
[Source "ChessBase"]
[SourceQuality "1"]
[TimeControl "40/5400+30:1800+30"]

1. e4 {[%emt 0:00:03]} e6 {[%emt 0:00:08]} 2. d4 {[%emt 0:00:16]} d5 {[%emt 0:00:05]} 3. e5 {[%emt 0:00:06]} c5 {[%emt 0:00:13]} 4. c3 {[%emt 0:00:04]} Bd7 {[%emt 0:00:27]} 5. Nf3 {[%emt 0:00:13]} Qb6 {[%emt 0:00:36]} 6. Bd3 {[%emt 0:00:30]} Bb5 {[%emt 0:00:27]} 7. O-O {[%emt 0:02:19]} Bxd3 {[%emt 0:00:32]} 8. dxc5 {[%emt 0:01:18]} Bxc5 {[%emt 0:00:52]} 9. Qxd3 {[%emt 0:00:10]} Nd7 {[%emt 0:00:24]} 10. Nbd2 {[%emt 0:21:31]} Qc7 {[%emt 0:00:19]} 11. Re1 {[%emt 0:00:43]} Ne7 {[%emt 0:00:07]} 12. b4 {[%emt 0:01:54]} Bb6 {[%emt 0:00:07]} 13. c4 {[%emt 0:00:52]} a5 {[%emt 0:01:22]} 14. Ba3 {[%emt 0:13:01]} axb4 {[%emt 0:00:34]} 15. Bxb4 {[%emt 0:00:02]} Bc5 {[%emt 0:00:17]} 16. a3 {[%emt 0:01:43]} Bxb4 {[%emt 0:01:29]} 17. axb4 {[%emt 0:00:09]} O-O {[%emt 0:00:45]} 18. cxd5 {[%emt 0:03:31]} Nxd5 {[%emt 0:00:21]} 19. Ng5 {[%emt 0:02:58]} g6 {[%emt 0:00:49]} 20. Qh3 {[%emt 0:00:11]} h5 {[%emt 0:00:09]} 21. Nxe6 {[%emt 0:00:13]} Rxa1 {[%emt 0:01:43]} 22. Rxa1 {[%emt 0:00:47]} Qxe5 {[%emt 0:00:42]} 0-1

[Event "LEM Niedersachsen-A-Open 2025"]
[Site "Verden"]
[Date "2025.01.05"]
[Round "7.8"]
[White "Renner, Kai"]
[Black "Moeller, Jonas"]
[Result "1/2-1/2"]
[ECO "C88"]
[WhiteElo "2080"]
[BlackElo "1934"]
[Annotator "NA RC"]
[PlyCount "48"]
[EventDate "2024.12.27"]
[EventType "swiss"]
[EventCountry "GER"]
[SourceTitle "playchess.com"]
[Source "ChessBase"]
[SourceQuality "1"]
[TimeControl "40/5400+30:1800+30"]

1. e4 {[%emt 0:00:02]} e5 {[%emt 0:00:02]} 2. Nf3 {[%emt 0:00:15]} Nc6 {[%emt 0:00:03]} 3. Bb5 {[%emt 0:00:16]} a6 {[%emt 0:00:04]} 4. Ba4 {[%emt 0:00:06]} Nf6 {[%emt 0:00:07]} 5. O-O {[%emt 0:00:12]} Be7 {[%emt 0:00:08]} 6. Re1 {[%emt 0:00:19]} b5 {[%emt 0:00:04]} 7. Bb3 {[%emt 0:00:05]} O-O {[%emt 0:00:12]} 8. a4 {[%emt 0:00:27]} b4 {[%emt 0:00:11]} 9. d4 {[%emt 0:00:25]} d6 {[%emt 0:00:11]} 10. dxe5 {[%emt 0:00:31]} dxe5 {[%emt 0:00:06]} 11. Nbd2 {[%emt 0:02:07] C88: Closed Ruy Lopez: Anti-Marshall Systems.} Bc5 {[%emt 0:09:36]} 12. a5 {[%emt 0:01:33] has lost popularity (12.Qe2).} Bg4 {[%emt 0:15:40]} 13. h3 {[%emt 0:01:58]} Bh5 {[%emt 0:06:06]} 14. g4 {[%emt 0:02:03]} Bg6 {[%emt 0:00:03]} 15. Qe2 {[%emt 0:20:15]} Nd4 {[%emt 0:08:10]} 16. Nxd4 $146 {[%emt 0:02:00]} ({Predecessor:} 16. Qc4 Nd7 17. Ba4 Ba7 18. Qxb4 Nc5 19. Qc4 Nxe4 20. Rxe4 Bxe4 21. Nxd4 Bd5 22. Nc6 {0-1 Phatak,A (2189)-Wang,Y (2435) Belgrade Serbia op 2024 (4)}) 16... Qxd4 {[%emt 0:06:45]} 17. Bc4 {[%emt 0:09:37]} Ba7 {[%emt 0:07:27]} 18. Bd3 {[%emt 0:02:16]} h5 {[%emt 0:05:53]} 19. Nb3 $17 {[%emt 0:03:59]} (19. g5 $16 Nd7 20. Nc4) 19... Qd7 {[%emt 0:04:11]} 20. g5 {[%emt 0:22:43]} Qxh3 {[%emt 0:01:11]} 21. gxf6 {[%emt 0:09:16]} Qg3+ {[%emt 0:00:09]} 22. Kf1 {[%emt 0:00:36]} Qh3+ {[%emt 0:01:17]} 23. Kg1 {[%emt 0:00:05]} Qg3+ {[%emt 0:01:14]} 24. Kf1 {[%emt 0:00:18]} Qh3+ {[%emt 0:00:06]} 1/2-1/2